[Event "Niedersachsen-ch A 2024"]
[Site "Verden Aller"]
[Date "2024.01.04"]
[Round "1.29"]
[White "Heirich, Andreas"]
[Black "Schramm, Kilian"]
[Result "0-1"]
[ECO "D51"]
[WhiteElo "1925"]
[BlackElo "1729"]
[Annotator "RC"]
[PlyCount "92"]
[EventDate "2024.01.01"]
[EventType "swiss"]
[EventCountry "GER"]
[SourceTitle "playchess.com"]
[Source "ChessBase"]
[SourceQuality "1"]
[TimeControl "40/5400+30:1800+30"]

1. d4 {[%emt 0:00:03]} Nf6 {[%emt 0:00:03]} 2. c4 {[%emt 0:00:11]} e6 {[%emt 0:00:04]} 3. Nc3 {[%emt 0:00:25]} Bb4 {[%emt 0:00:05]} 4. Bg5 {[%emt 0:00:35]} d5 {[%emt 0:00:38]} 5. e3 {[%emt 0:00:52]} Nbd7 {[%emt 0:01:04]} 6. Bxf6 {[%emt 0:01:13]} Bxc3+ {[%emt 0:02:13]} 7. bxc3 {[%emt 0:00:14]} Nxf6 {[%emt 0:00:05]} 8. Nf3 {[%emt 0:01:28]} O-O {[%emt 0:00:39]} 9. Bd3 {[%emt 0:00:31]} Qe7 {[%emt 0:03:12]} 10. Qc2 {[%emt 0:00:50]} b6 {[%emt 0:01:14]} 11. cxd5 {[%emt 0:06:41]} exd5 {[%emt 0:00:32]} 12. O-O {[%emt 0:01:18]} Bb7 {[%emt 0:00:23]} 13. Rab1 {[%emt 0:01:10]} Ne4 {[%emt 0:05:41]} 14. c4 {[%emt 0:12:20]} dxc4 {[%emt 0:11:53]} 15. Bxc4 {[%emt 0:04:30]} c5 {[%emt 0:05:23]} 16. Rfd1 {[%emt 0:08:39]} cxd4 {[%emt 0:07:02]} 17. Rxd4 {[%emt 0:02:30]} Rac8 {[%emt 0:02:35]} 18. Rb5 {[%emt 0:07:07]} Nd6 {[%emt 0:02:13]} 19. Re5 {[%emt 0:04:56]} Qc7 {[%emt 0:07:14]} 20. Rh5 {[%emt 0:39:17]} g6 {[%emt 0:00:10]} 21. Rhh4 {[%emt 0:00:29]} Nf5 {[%emt 0:02:11]} 22. Qd1 {[%emt 0:02:11]} Nxd4 {[%emt 0:02:30]} 23. Rxd4 {[%emt 0:00:18]} Bxf3 {[%emt 0:06:19]} 24. gxf3 {[%emt 0:00:30]} Rcd8 {[%emt 0:03:22]} 25. Rxd8 {[%emt 0:00:19]} Rxd8 {[%emt 0:00:17]} 26. Qb3 {[%emt 0:00:06]} Qd7 {[%emt 0:02:49]} 27. Kg2 {[%emt 0:00:13]} Qf5 {[%emt 0:00:38]} 28. h4 {[%emt 0:00:46]} g5 {[%emt 0:00:27]} 29. hxg5 {[%emt 0:00:25]} Qxg5+ {[%emt 0:00:14]} 30. Kf1 {[%emt 0:00:01]} Qf6 {[%emt 0:03:06]} 31. f4 {[%emt 0:00:42]} h5 {[%emt 0:01:01]} 32. Be2 {[%emt 0:01:01]} h4 {[%emt 0:02:00]} 33. Kg2 {[%emt 0:00:13]} Qf5 {[%emt 0:05:54]} 34. Qc3 {[%emt 0:00:35]} Rd6 {[%emt 0:00:35]} 35. Kh2 {[%emt 0:00:50]} Rg6 {[%emt 0:01:57]} 36. Bd3 {[%emt 0:00:12]} Qg4 {[%emt 0:01:22]} 37. Bxg6 {[%emt 0:00:28]} fxg6 {[%emt 0:01:29]} 38. Qc4+ {[%emt 0:00:58]} Kf8 {[%emt 0:00:33]} 39. Qf1 {[%emt 0:00:55]} Qf3 {[%emt 0:00:29]} 40. a4 {[%emt 0:00:38]} a6 {[%emt 0:04:08]} 41. Qg1 {[%emt 0:04:16]} Kf7 {[%emt 0:01:12]} 42. Qf1 {[%emt 0:00:20]} Ke7 {[%emt 0:04:23]} 43. Qg1 {[%emt 0:00:20]} b5 {[%emt 0:01:14]} 44. axb5 {[%emt 0:01:07]} axb5 {[%emt 0:00:07]} 45. Qg5+ {[%emt 0:00:17]} Kf7 {[%emt 0:00:16]} 46. Qxh4 {[%emt 0:00:45]} Qh5 {[%emt 0:42:34]} 0-1

[Event "Niedersachsen-ch A 2024"]
[Site "Verden Aller"]
[Date "2024.01.04"]
[Round "1.30"]
[White "Ahlbrecht, Malte"]
[Black "Kieselbach, Jannik"]
[Result "0-1"]
[ECO "D02"]
[WhiteElo "1727"]
[BlackElo "1885"]
[Annotator "NA RC"]
[PlyCount "100"]
[EventDate "2024.01.01"]
[EventType "swiss"]
[EventCountry "GER"]
[SourceTitle "playchess.com"]
[Source "ChessBase"]
[SourceQuality "1"]
[TimeControl "40/5400+30:1800+30"]

1. d4 {[%emt 0:00:10]} Nf6 {[%emt 0:00:10]} 2. Nf3 {[%emt 0:00:06]} e6 {[%emt 0:00:10]} 3. Bf4 {[%emt 0:00:09]} d5 {[%emt 0:00:18]} 4. e3 {[%emt 0:00:14]} Bd6 {[%emt 0:00:08]} 5. Ne5 {[%emt 0:00:03]} O-O {[%emt 0:01:28]} 6. Nd2 {[%emt 0:00:15]} b6 {[%emt 0:05:22]} 7. c3 {[%emt 0:07:53]} Bb7 {[%emt 0:01:09]} 8. Bd3 {[%emt 0:00:47]} Ne4 {[%emt 0:08:49]} 9. Bxe4 {[%emt 0:19:34]} dxe4 {[%emt 0:00:23]} 10. Qg4 {[%emt 0:06:08]} Qe7 {[%emt 0:54:21]} 11. O-O {[%emt 0:18:53]} Nd7 {[%emt 0:10:27]} 12. Rad1 {[%emt 0:27:07]} Nf6 {[%emt 0:05:40]} 13. Qh4 {[%emt 0:01:03]} Nd5 {[%emt 0:01:14]} 14. Qxe7 {[%emt 0:01:04]} Nxe7 {[%emt 0:01:31]} 15. Rfe1 {[%emt 0:06:40]} Rfd8 {[%emt 0:01:50]} 16. Nec4 {[%emt 0:04:20]} Rac8 {[%emt 0:01:47]} 17. f3 {[%emt 0:03:28]} Bxf4 {[%emt 0:00:45]} 18. exf4 {[%emt 0:00:08]} exf3 {[%emt 0:00:07]} 19. Nxf3 {[%emt 0:00:32]} Bxf3 {[%emt 0:00:07]} 20. gxf3 {[%emt 0:00:01]} Rd5 {[%emt 0:02:35]} 21. Re5 {[%emt 0:01:08]} Rcd8 {[%emt 0:00:50]} 22. Rde1 {[%emt 0:00:40]} R5d7 {[%emt 0:01:05]} 23. Na3 {[%emt 0:00:51]} h6 {[%emt 0:00:26]} 24. Nc2 {[%emt 0:00:25]} Ng6 {[%emt 0:00:48]} 25. R5e4 {[%emt 0:00:07]} Ne7 {[%emt 0:00:35]} 26. Re5 {[%emt 0:00:45]} Nd5 {[%emt 0:00:07]} 27. f5 {[%emt 0:00:30]} exf5 {[%emt 0:00:26]} 28. Rxf5 {[%emt 0:00:08]} f6 {[%emt 0:00:47]} 29. c4 {[%emt 0:00:32]} Ne7 {[%emt 0:00:21]} 30. Rf4 {[%emt 0:00:00]} Kf7 {[%emt 0:00:19]} 31. Kf2 {[%emt 0:00:06]} Nc6 {[%emt 0:00:42]} 32. Rfe4 {[%emt 0:01:09]} Ne7 {[%emt 0:00:55]} 33. d5 {[%emt 0:00:18]} c6 {[%emt 0:00:22]} 34. dxc6 {[%emt 0:01:10]} Nxc6 {[%emt 0:00:06]} 35. f4 {[%emt 0:00:34]} Rd2+ {[%emt 0:00:54]} 36. R1e2 {[%emt 0:00:16]} Rxe2+ {[%emt 0:00:33]} 37. Kxe2 {[%emt 0:00:45]} g6 {[%emt 0:00:31]} 38. b3 {[%emt 0:00:44]} f5 {[%emt 0:00:22]} 39. Re3 {[%emt 0:00:06]} g5 {[%emt 0:00:25]} 40. fxg5 {[%emt 0:00:58]} hxg5 {[%emt 0:00:07]} 41. Rh3 {[%emt 0:30:16]} Kg6 {[%emt 0:30:54]} 42. Re3 {[%emt 0:00:54]} Kf6 {[%emt 0:00:00]} 43. Rh3 {[%emt 0:00:00]} Ne7 {[%emt 0:00:00]} 44. Nb4 {[%emt 0:00:00]} Ng6 {[%emt 0:00:00]} 45. Re3 {[%emt 0:00:00]} Nf4+ {[%emt 0:00:00]} 46. Kf3 {[%emt 0:00:00]} Rh8 $19 {[%emt 0:00:00]} 47. Nd5+ {[%emt 0:00:00]} Nxd5 {[%emt 0:00:00]} 48. cxd5 {[%emt 0:00:00]} Rh3+ {[%emt 0:00:00]} 49. Ke2 {[%emt 0:00:00]} Rxe3+ {[%emt 0:00:00]} 50. Kxe3 {[%emt 0:00:00]} Ke5 {[%emt 0:00:00]} 0-1

[Event "Niedersachsen-ch A 2024"]
[Site "Verden Aller"]
[Date "2024.01.04"]
[Round "1.31"]
[White "Kozik, Andreas"]
[Black "Moller, Tomas"]
[Result "1/2-1/2"]
[ECO "D00"]
[WhiteElo "1912"]
[BlackElo "1553"]
[Annotator "NA RC"]
[PlyCount "67"]
[EventDate "2024.01.01"]
[EventType "swiss"]
[EventCountry "GER"]
[SourceTitle "playchess.com"]
[Source "ChessBase"]
[SourceQuality "1"]
[TimeControl "40/5400+30:1800+30"]

1. d4 {[%emt 0:00:02]} d5 {[%emt 0:00:03]} 2. Bf4 {[%emt 0:00:08]} Bf5 {[%emt 0:06:09]} 3. e3 {[%emt 0:01:47]} Nf6 {[%emt 0:00:30]} 4. Nd2 {[%emt 0:02:33]} e6 {[%emt 0:00:22]} 5. c3 {[%emt 0:00:48]} c5 {[%emt 0:02:34]} 6. Ngf3 {[%emt 0:01:36]} a6 {[%emt 0:02:00]} 7. Ne5 {[%emt 0:15:13]} Nbd7 {[%emt 0:03:33]} 8. g4 {[%emt 0:06:54]} Nxe5 {[%emt 0:05:36]} 9. gxf5 {[%emt 0:01:24]} Nc6 {[%emt 0:00:24]} 10. fxe6 {[%emt 0:09:48]} fxe6 {[%emt 0:00:09]} 11. Bh3 {[%emt 0:09:48]} Qd7 {[%emt 0:05:46]} 12. Qe2 {[%emt 0:09:40]} O-O-O {[%emt 0:01:42]} 13. Rc1 {[%emt 0:09:43]} Re8 {[%emt 0:03:39]} 14. dxc5 {[%emt 0:02:37]} Bxc5 {[%emt 0:00:57]} 15. b4 {[%emt 0:00:41]} Bd6 {[%emt 0:01:47]} 16. b5 {[%emt 0:03:11]} axb5 {[%emt 0:02:14]} 17. Bxd6 {[%emt 0:01:19]} Qxd6 {[%emt 0:00:11]} 18. Qxb5 {[%emt 0:00:22]} Re7 {[%emt 0:02:55]} 19. Nf3 {[%emt 0:08:05]} Ne4 {[%emt 0:06:32]} 20. Nd4 {[%emt 0:02:02]} Rf8 {[%emt 0:07:15]} 21. Rc2 {[%emt 0:01:52]} Nxd4 {[%emt 0:03:41]} 22. cxd4+ {[%emt 0:00:06]} Rc7 {[%emt 0:00:06]} 23. Rxc7+ {[%emt 0:01:00]} Qxc7 {[%emt 0:00:12]} 24. Bxe6+ {[%emt 0:00:17]} Kb8 {[%emt 0:00:10]} 25. O-O {[%emt 0:00:34]} Nd2 {[%emt 0:10:30]} 26. Bxd5 {[%emt 0:03:20]} Nxf1 {[%emt 0:01:32]} 27. Kxf1 {[%emt 0:00:08]} Qc1+ {[%emt 0:02:23]} 28. Kg2 {[%emt 0:00:08]} Qc8 {[%emt 0:00:41]} 29. Bf3 {[%emt 0:06:09]} Rf6 {[%emt 0:01:51]} 30. Qe5+ {[%emt 0:00:47]} Ka8 {[%emt 0:00:30]} 31. Qa5+ {[%emt 0:01:33]} Kb8 {[%emt 0:00:27]} 32. Qe5+ {[%emt 0:00:04]} Ka8 {[%emt 0:00:20]} 33. Qa5+ {[%emt 0:00:55]} Kb8 {[%emt 0:00:11]} 34. Qe5+ {[%emt 0:00:35]} 1/2-1/2

[Event "Niedersachsen-ch A 2024"]
[Site "Verden Aller"]
[Date "2024.01.04"]
[Round "1.32"]
[White "Burnus, Finn Crispin"]
[Black "Seer, Maurice"]
[Result "0-1"]
[ECO "D15"]
[WhiteElo "1655"]
[BlackElo "1912"]
[Annotator "RC"]
[PlyCount "70"]
[EventDate "2024.01.01"]
[EventType "swiss"]
[EventCountry "GER"]
[SourceTitle "playchess.com"]
[Source "ChessBase"]
[SourceQuality "1"]
[TimeControl "40/5400+30:1800+30"]

1. d4 {[%emt 0:00:03]} d5 {[%emt 0:00:05]} 2. c4 {[%emt 0:00:06]} c6 {[%emt 0:00:05]} 3. e3 {[%emt 0:00:20]} Nf6 {[%emt 0:00:14]} 4. Nc3 {[%emt 0:00:08]} a6 {[%emt 0:01:09]} 5. Nf3 {[%emt 0:00:59]} Bf5 {[%emt 0:00:36]} 6. cxd5 {[%emt 0:02:39]} cxd5 {[%emt 0:00:44]} 7. Bd3 {[%emt 0:01:38]} Bxd3 {[%emt 0:00:22]} 8. Qxd3 {[%emt 0:00:03]} e6 {[%emt 0:00:46]} 9. O-O {[%emt 0:00:26]} Be7 {[%emt 0:02:26]} 10. Bd2 {[%emt 0:03:54]} Nc6 {[%emt 0:03:28]} 11. Rad1 {[%emt 0:02:04]} O-O {[%emt 0:00:50]} 12. Rfe1 {[%emt 0:01:58]} Rc8 {[%emt 0:04:53]} 13. e4 {[%emt 0:01:40]} Nb4 {[%emt 0:10:13]} 14. Qb1 {[%emt 0:03:35]} dxe4 {[%emt 0:03:00]} 15. Nxe4 {[%emt 0:04:16]} Qb6 {[%emt 0:14:29]} 16. Bg5 {[%emt 0:14:13]} Nbd5 {[%emt 0:02:37]} 17. Nxf6+ {[%emt 0:03:47]} Bxf6 {[%emt 0:01:33]} 18. Bxf6 {[%emt 0:00:15]} Nxf6 {[%emt 0:00:06]} 19. Re3 {[%emt 0:02:40]} Rc7 {[%emt 0:03:18]} 20. Rb3 {[%emt 0:04:44]} Qd6 {[%emt 0:02:33]} 21. Rc1 {[%emt 0:02:16]} Rfc8 {[%emt 0:01:29]} 22. Rbc3 {[%emt 0:03:13]} h6 {[%emt 0:08:39]} 23. Rxc7 {[%emt 0:04:25]} Rxc7 {[%emt 0:00:36]} 24. h3 {[%emt 0:03:32]} Nd5 {[%emt 0:01:47]} 25. a3 {[%emt 0:01:00]} Nf4 {[%emt 0:07:08]} 26. Rxc7 {[%emt 0:02:07]} Qxc7 {[%emt 0:00:08]} 27. Qe4 {[%emt 0:06:24]} g5 {[%emt 0:06:01]} 28. h4 {[%emt 0:13:17]} Qc1+ {[%emt 0:05:00]} 29. Kh2 {[%emt 0:00:04]} Qf1 {[%emt 0:05:30]} 30. Ne5 {[%emt 0:02:02]} Qxf2 {[%emt 0:02:17]} 31. Qxb7 {[%emt 0:01:03]} Ne2 {[%emt 0:05:16]} 32. Qa8+ {[%emt 0:10:39]} Kg7 {[%emt 0:00:32]} 33. Qe4 {[%emt 0:00:23]} Qg1+ {[%emt 0:01:29]} 34. Kh3 {[%emt 0:00:27]} Qh1+ {[%emt 0:00:21]} 35. Kg4 {[%emt 0:00:10]} f5+ {[%emt 0:00:12]} 0-1

[Event "Niedersachsen-ch A 2024"]
[Site "Verden Aller"]
[Date "2024.01.04"]
[Round "1.33"]
[White "Boerma, Daniel"]
[Black "Hoke, Joshua"]
[Result "1-0"]
[ECO "D37"]
[WhiteElo "1905"]
[BlackElo "1600"]
[Annotator "NA RC"]
[PlyCount "53"]
[EventDate "2024.01.01"]
[EventType "swiss"]
[EventCountry "GER"]
[SourceTitle "playchess.com"]
[Source "ChessBase"]
[SourceQuality "1"]
[TimeControl "40/5400+30:1800+30"]

1. d4 {[%emt 0:00:03]} d5 {[%emt 0:00:12]} 2. Nf3 {[%emt 0:00:13]} Nf6 {[%emt 0:00:28]} 3. c4 {[%emt 0:00:10]} e6 {[%emt 0:01:20]} 4. Nc3 {[%emt 0:00:08]} Be7 {[%emt 0:02:35]} 5. Bf4 {[%emt 0:00:51]} a6 {[%emt 0:02:01]} 6. cxd5 {[%emt 0:00:18]} exd5 {[%emt 0:00:29]} 7. e3 {[%emt 0:00:07]} O-O {[%emt 0:01:36]} 8. Bd3 {[%emt 0:00:07]} Nbd7 {[%emt 0:00:54]} 9. h3 {[%emt 0:00:16]} c6 {[%emt 0:01:41]} 10. O-O {[%emt 0:02:06]} Re8 {[%emt 0:02:26]} 11. Rc1 {[%emt 0:00:13]} Nf8 {[%emt 0:04:47]} 12. Ne5 {[%emt 0:00:27]} Ne6 {[%emt 0:08:44]} 13. Bh2 {[%emt 0:00:11]} g6 {[%emt 0:03:58]} 14. Na4 {[%emt 0:02:06]} Bd6 {[%emt 0:05:07]} 15. Qb3 {[%emt 0:02:00]} Rb8 {[%emt 0:10:37]} 16. Nb6 {[%emt 0:01:07]} c5 {[%emt 0:08:21]} 17. Nxd5 {[%emt 0:07:57]} cxd4 {[%emt 0:02:25]} 18. e4 {[%emt 0:02:05]} Nc5 {[%emt 0:09:45]} 19. Rxc5 {[%emt 0:00:39]} Bxe5 {[%emt 0:02:41]} 20. Nxf6+ {[%emt 0:02:13]} Qxf6 {[%emt 0:06:46]} 21. f4 {[%emt 0:00:50]} Bd6 {[%emt 0:05:53]} 22. e5 {[%emt 0:00:26]} Qe7 {[%emt 0:02:04]} 23. exd6 {[%emt 0:00:11]} Qe3+ {[%emt 0:00:06]} 24. Kh1 {[%emt 0:00:34]} Be6 {[%emt 0:00:25]} 25. Qd1 {[%emt 0:00:53]} Bxa2 {[%emt 0:02:16]} 26. d7 {[%emt 0:01:22]} Red8 {[%emt 0:00:18]} 27. Re5 {[%emt 0:00:54]} 1-0

[Event "Niedersachsen-ch A 2024"]
[Site "Verden Aller"]
[Date "2024.01.04"]
[Round "1.34"]
[White "Ay, Furkan"]
[Black "Arndt, Felix"]
[Result "1-0"]
[ECO "B07"]
[WhiteElo "1544"]
[BlackElo "1901"]
[Annotator "NA RC"]
[PlyCount "63"]
[EventDate "2024.01.01"]
[EventType "swiss"]
[EventCountry "GER"]
[SourceTitle "playchess.com"]
[Source "ChessBase"]
[SourceQuality "1"]
[TimeControl "40/5400+30:1800+30"]

1. e4 {[%emt 0:00:10]} d6 {[%emt 0:00:10]} 2. d4 {[%emt 0:00:30]} Nf6 {[%emt 0:00:14]} 3. Nc3 {[%emt 0:00:31]} c6 {[%emt 0:00:42]} 4. a4 {[%emt 0:00:08]} Qc7 {[%emt 0:05:09]} 5. Nf3 {[%emt 0:05:05]} Bg4 {[%emt 0:01:58]} 6. Bc4 {[%emt 0:02:56]} e5 {[%emt 0:02:00]} 7. Be3 {[%emt 0:04:13]} Be7 {[%emt 0:02:12]} 8. h3 {[%emt 0:01:48]} Bxf3 {[%emt 0:00:59]} 9. Qxf3 {[%emt 0:00:17]} O-O {[%emt 0:00:47]} 10. O-O {[%emt 0:00:20]} a5 {[%emt 0:02:54]} 11. Ne2 {[%emt 0:05:57]} Na6 {[%emt 0:13:30]} 12. Ng3 {[%emt 0:01:00]} Nb4 {[%emt 0:02:19]} 13. dxe5 {[%emt 0:07:04]} dxe5 {[%emt 0:00:23]} 14. Rac1 {[%emt 0:00:10]} Rad8 {[%emt 0:07:09]} 15. Nf5 {[%emt 0:06:16]} g6 {[%emt 0:17:49]} 16. Nh6+ {[%emt 0:01:18]} Kg7 {[%emt 0:00:18]} 17. h4 {[%emt 0:04:21]} b5 {[%emt 0:10:58]} 18. axb5 {[%emt 0:01:06]} cxb5 {[%emt 0:00:06]} 19. Bxb5 {[%emt 0:00:14]} Qb7 {[%emt 0:00:13]} 20. Qg3 {[%emt 0:21:29]} Qxe4 {[%emt 0:03:41]} 21. Rfe1 {[%emt 0:00:26]} Nh5 {[%emt 0:06:42]} 22. Qg4 {[%emt 0:03:49]} Qxg4 {[%emt 0:04:41]} 23. Nxg4 {[%emt 0:00:09]} Bxh4 {[%emt 0:01:49]} 24. Bh6+ {[%emt 0:02:54]} Kg8 {[%emt 0:00:06]} 25. Bxf8 {[%emt 0:00:07]} Kxf8 {[%emt 0:00:12]} 26. Nxe5 {[%emt 0:00:17]} Kg7 {[%emt 0:03:43]} 27. Bc4 {[%emt 0:02:51]} Rd2 {[%emt 0:02:35]} 28. g3 {[%emt 0:01:32]} Bf6 {[%emt 0:00:22]} 29. c3 {[%emt 0:01:47]} Nc2 {[%emt 0:06:33]} 30. Re4 {[%emt 0:02:20]} Bxe5 {[%emt 0:00:52]} 31. Rxe5 {[%emt 0:00:15]} a4 {[%emt 0:00:14]} 32. Ra5 {[%emt 0:01:17]} 1-0

[Event "Niedersachsen-ch A 2024"]
[Site "Verden Aller"]
[Date "2024.01.04"]
[Round "1.35"]
[White "Soellig, Martin"]
[Black "Zweigait, Leon"]
[Result "0-1"]
[ECO "B23"]
[WhiteElo "1892"]
[BlackElo "1526"]
[Annotator "NA RC"]
[PlyCount "138"]
[EventDate "2024.01.01"]
[EventType "swiss"]
[EventCountry "GER"]
[SourceTitle "playchess.com"]
[Source "ChessBase"]
[SourceQuality "1"]
[TimeControl "40/5400+30:1800+30"]

1. e4 {[%emt 0:00:05]} c5 {[%emt 0:00:05]} 2. Nc3 {[%emt 0:00:06]} e6 {[%emt 0:00:09]} 3. Nge2 {[%emt 0:00:53]} Nc6 {[%emt 0:00:12]} 4. g3 {[%emt 0:00:17]} a6 {[%emt 0:01:39]} 5. Bg2 {[%emt 0:00:34]} b5 {[%emt 0:00:07]} 6. a3 {[%emt 0:01:23]} Bb7 {[%emt 0:00:19]} 7. O-O {[%emt 0:01:08]} Qb6 {[%emt 0:00:55]} 8. d3 {[%emt 0:02:52]} Nf6 {[%emt 0:00:18]} 9. h3 {[%emt 0:01:31]} Be7 {[%emt 0:03:45]} 10. Bg5 {[%emt 0:03:47]} h6 {[%emt 0:00:45]} 11. Be3 {[%emt 0:00:11]} Rd8 {[%emt 0:01:35]} 12. Qd2 {[%emt 0:04:48]} d5 {[%emt 0:00:21]} 13. exd5 {[%emt 0:01:43]} exd5 {[%emt 0:00:07]} 14. d4 {[%emt 0:01:40]} O-O {[%emt 0:00:56]} 15. Rad1 {[%emt 0:06:38]} Rfe8 {[%emt 0:02:46]} 16. dxc5 {[%emt 0:14:34]} Bxc5 {[%emt 0:00:10]} 17. Bxc5 {[%emt 0:01:48]} Qxc5 {[%emt 0:00:10]} 18. Nd4 {[%emt 0:01:19]} Ne5 {[%emt 0:01:03]} 19. Nce2 {[%emt 0:04:44]} Ne4 {[%emt 0:02:45]} 20. Qc1 {[%emt 0:03:15]} Rd6 {[%emt 0:05:31]} 21. c3 {[%emt 0:03:37]} Nc4 {[%emt 0:02:33]} 22. Kh2 {[%emt 0:05:21]} a5 {[%emt 0:01:52]} 23. Nf4 {[%emt 0:08:31]} b4 {[%emt 0:01:30]} 24. axb4 {[%emt 0:00:39]} axb4 {[%emt 0:02:53]} 25. Nd3 {[%emt 0:02:06]} Qc7 {[%emt 0:01:44]} 26. Nb5 {[%emt 0:01:09]} Qb6 {[%emt 0:06:01]} 27. Nxd6 {[%emt 0:01:06]} Ncxd6 {[%emt 0:00:16]} 28. cxb4 {[%emt 0:01:47]} Ba6 {[%emt 0:00:36]} 29. f3 {[%emt 0:04:34]} Nf6 {[%emt 0:00:39]} 30. Qc5 {[%emt 0:02:38]} Qb8 {[%emt 0:02:15]} 31. Rfe1 {[%emt 0:02:35]} Rc8 {[%emt 0:00:58]} 32. Qa5 {[%emt 0:05:41]} Bxd3 {[%emt 0:00:56]} 33. Rxd3 {[%emt 0:00:35]} Rc2 {[%emt 0:01:13]} 34. Rb3 {[%emt 0:06:23]} Nf5 {[%emt 0:04:57]} 35. f4 {[%emt 0:01:33]} Qb7 {[%emt 0:07:49]} 36. Kg1 {[%emt 0:02:23]} Nd4 {[%emt 0:06:20]} 37. Rbe3 {[%emt 0:02:57]} Rxb2 {[%emt 0:02:10]} 38. Re7 {[%emt 0:00:50]} Qxb4 {[%emt 0:01:09]} 39. Qxb4 {[%emt 0:01:10]} Rxb4 {[%emt 0:00:11]} 40. Rd1 {[%emt 0:00:01]} Nf5 {[%emt 0:00:39]} 41. Ra7 {[%emt 0:31:34]} Nxg3 {[%emt 0:31:58]} 42. Bxd5 {[%emt 0:00:27]} Nxd5 {[%emt 0:00:33]} 43. Rxd5 {[%emt 0:00:19]} Rxf4 {[%emt 0:00:10]} 44. Kg2 {[%emt 0:00:00]} Nf5 {[%emt 0:00:00]} 45. Rd8+ {[%emt 0:00:00]} Kh7 {[%emt 0:00:00]} 46. Rdd7 {[%emt 0:00:00]} Kg6 {[%emt 0:00:00]} 47. Kh2 {[%emt 0:00:00]} Nd4 {[%emt 0:00:00]} 48. Ra6+ {[%emt 0:00:00]} Kh5 {[%emt 0:00:00]} 49. Rad6 {[%emt 0:00:00]} Ne2 {[%emt 0:00:00]} 50. Kg2 {[%emt 0:00:00]} g5 {[%emt 0:00:00]} 51. Rc6 {[%emt 0:00:00]} Nd4 {[%emt 0:00:00]} 52. Rc4 {[%emt 0:00:00]} Ne6 {[%emt 0:00:00]} 53. Rc8 {[%emt 0:00:00]} Kh4 {[%emt 0:00:00]} 54. Rh8 {[%emt 0:00:00]} h5 {[%emt 0:00:00]} 55. Ra7 {[%emt 0:00:00]} Rf5 {[%emt 0:00:00]} 56. Ra4+ {[%emt 0:00:00]} Nf4+ {[%emt 0:00:00]} 57. Kh2 {[%emt 0:00:00]} Re5 {[%emt 0:00:00]} 58. Rf8 {[%emt 0:00:00]} f5 {[%emt 0:00:00]} 59. Ra2 {[%emt 0:00:00]} Nxh3 {[%emt 0:00:00]} 60. Kg2 {[%emt 0:00:00]} g4 {[%emt 0:00:00]} 61. Rg8 {[%emt 0:00:00]} f4 {[%emt 0:00:00]} 62. Rga8 {[%emt 0:00:00]} f3+ {[%emt 0:00:00]} 63. Kf1 {[%emt 0:00:41]} Kg3 {[%emt 0:00:00]} 64. R8a5 {[%emt 0:01:12]} Rxa5 {[%emt 0:01:20]} 65. Rxa5 {[%emt 0:00:05]} h4 {[%emt 0:00:22]} 66. Ra4 {[%emt 0:00:59]} Nf4 {[%emt 0:00:11]} 67. Ra8 {[%emt 0:01:15]} h3 {[%emt 0:00:13]} 68. Rh8 {[%emt 0:00:04]} Ng2 {[%emt 0:00:41]} 69. Kg1 {[%emt 0:02:01]} f2+ {[%emt 0:00:09]} 0-1

[Event "Niedersachsen-ch A 2024"]
[Site "Verden Aller"]
[Date "2024.01.04"]
[Round "2.1"]
[White "Stoy, Ulf"]
[Black "Carlstedt, Jonathan"]
[Result "0-1"]
[ECO "A20"]
[WhiteElo "1985"]
[BlackElo "2447"]
[Annotator "RC"]
[PlyCount "82"]
[EventDate "2024.01.01"]
[EventType "swiss"]
[EventCountry "GER"]
[SourceTitle "playchess.com"]
[Source "ChessBase"]
[SourceQuality "1"]
[TimeControl "40/5400+30:1800+30"]

1. c4 {[%emt 0:00:02]} e5 {[%emt 0:00:09]} 2. g3 {[%emt 0:00:08]} Nf6 {[%emt 0:00:08]} 3. Bg2 {[%emt 0:00:07]} c6 {[%emt 0:00:12]} 4. d4 {[%emt 0:00:30]} Bb4+ {[%emt 0:00:12]} 5. Nc3 {[%emt 0:01:28]} d6 {[%emt 0:00:35]} 6. e3 {[%emt 0:01:49]} Qa5 {[%emt 0:01:42]} 7. Nge2 {[%emt 0:02:13]} Be6 {[%emt 0:00:26]} 8. Qb3 {[%emt 0:06:04]} b5 {[%emt 0:02:02]} 9. a3 {[%emt 0:12:37]} Bxc3+ {[%emt 0:00:35]} 10. Qxc3 {[%emt 0:00:17]} Qxc3+ {[%emt 0:00:12]} 11. Nxc3 {[%emt 0:00:11]} Bxc4 {[%emt 0:00:27]} 12. a4 {[%emt 0:04:05]} b4 {[%emt 0:02:01]} 13. dxe5 {[%emt 0:04:07]} dxe5 {[%emt 0:00:27]} 14. Ne4 {[%emt 0:00:18]} Nxe4 {[%emt 0:02:04]} 15. Bxe4 {[%emt 0:00:08]} Bd5 {[%emt 0:00:06]} 16. Bxd5 {[%emt 0:01:09]} cxd5 {[%emt 0:00:02]} 17. a5 {[%emt 0:02:18]} Na6 {[%emt 0:00:25]} 18. Ke2 {[%emt 0:01:07]} Ke7 {[%emt 0:00:36]} 19. Rd1 {[%emt 0:01:05]} Ke6 {[%emt 0:00:21]} 20. Bd2 {[%emt 0:03:05]} Rhc8 {[%emt 0:00:41]} 21. Rdc1 {[%emt 0:01:02]} Rab8 {[%emt 0:01:12]} 22. Rxc8 {[%emt 0:03:24]} Rxc8 {[%emt 0:00:06]} 23. Rc1 {[%emt 0:00:07]} Rxc1 {[%emt 0:00:42]} 24. Bxc1 {[%emt 0:00:07]} Kd6 {[%emt 0:00:45]} 25. f4 {[%emt 0:03:51]} e4 {[%emt 0:01:02]} 26. Kd2 {[%emt 0:01:31]} Kc6 {[%emt 0:00:40]} 27. b3 {[%emt 0:02:17]} Nc5 {[%emt 0:00:14]} 28. Bb2 {[%emt 0:01:54]} g6 {[%emt 0:00:07]} 29. Kc2 {[%emt 0:00:43]} a6 {[%emt 0:00:08]} 30. Bf6 {[%emt 0:01:59]} Kb5 {[%emt 0:00:23]} 31. Bd4 {[%emt 0:01:48]} Nb7 {[%emt 0:00:11]} 32. Be5 {[%emt 0:01:16]} Nxa5 {[%emt 0:00:10]} 33. Bd4 {[%emt 0:01:02]} Nc6 {[%emt 0:00:12]} 34. Bg7 {[%emt 0:02:18]} a5 {[%emt 0:00:06]} 35. Ba1 {[%emt 0:01:28]} a4 {[%emt 0:00:08]} 36. Bg7 {[%emt 0:01:14]} axb3+ {[%emt 0:00:08]} 37. Kxb3 {[%emt 0:00:09]} Na5+ {[%emt 0:00:07]} 38. Kc2 {[%emt 0:00:29]} Kc4 {[%emt 0:00:15]} 39. Bb2 {[%emt 0:01:15]} Nc6 {[%emt 0:00:07]} 40. Ba1 {[%emt 0:00:45]} d4 {[%emt 0:00:08]} 41. exd4 {[%emt 0:31:04]} Nxd4+ {[%emt 0:30:07]} 0-1